Workbook

Sheet Affidavit & Summary
A1: This form should be used by a party to a hearing before the Board to identify the fees and disbursements that form the party's cost claim. Paper and electronic copies of this form and itemized receipts must be filed with the Board and served on one or more other parties as directed by the Board in the applicable Board order. Please ensure all required (yellow-shaded) fields are filled in and the Affidavit portion is signed and sworn or affirmed.
A4: Instructions
A5: - Required data input is indicated by yellow-shaded fields. Formulas are embedded in the form to assist with calculations.
A6: - All claims must be in Canadian dollars. If applicable, state exchange rate and country of initial currency.
E7: Rate: | H7: Country:
A8: - A separate "Detail of Fees and Disbursements Being Claimed" (comprising a "Statement of Fees Being Claimed" and a "Statement of Disbursements Being Claimed") is required for each lawyer, analyst/consultant and articling student/paralegal.
A9: However, only one "Summary of Fees and Disbursements" covering the whole of the party's cost claim should be provided.
A10: - The cost claim must be supported by a completed Affidavit signed by a representative of the party.
A11: - A CV for each consultant/analyst must be attached unless provided to the Board as prescribed on the Cost Award Tariff.
A12: Except as provided in section 7.03 of the Practice Direction on Cost Awards, itemized receipts must be provided.
A15: File # EB- | B15: 2018-0305 | F15: Process: | G15: Enbridge Gas Inc. 2019 Natural Gas Rates
A17: Party: | B17: Quinte Manufacturers Association | G17: Affiant's Name: | H17: Michael McLeod
A19: HST Number: | C19: 893039321 RT0001 | G19: HST Rate Ontario: | I19: 0.13
D21: Full Registrant | H21: Qualifying Non-Profit
D22: Unregistered | H22: Tax Exempt
D23: Other
A26: Affidavit
A28: I, | B28: Michael McLeod | F28: , of the City/Town of | H28: Carrying Place
A29: in the Province/State of | E29: Ontario | H29: , swear or affirm that:
A31: 1. I am a representative of the above-noted party (the "Party") and as such have knowledge of the matters attested to herein.
A32: 2. I have examined all of the documentation in support of this cost claim, including the attached "Summary of Fees and Disbursements Being Claimed", "Statement(s) of Fees Being Claimed" and "Statement(s) of Disbursements Being Claimed".
A33: 3. The attached "Summary of Fees and Disbursements Being Claimed", "Statement(s) of Fees Being Claimed" and "Statement(s) of Disbursements Being Claimed" include only costs incurred and time spent directly for the purposes of the Party's participation in the Ontario Energy Board process referred to above.
A34: 4. This cost claim does not include any costs for work done, or time spent, by a person that is an employee or officer of the Party as described in sections 6.05 and 6.09 of the Board's Practice Direction on Cost Awards.
A36: Signature of Affiant
A38: Sworn or affirmed before me at the City/Town of | F38: Belleville | J38: ,
A39: in the Province/State of | D39: Ontario | G39: , on | H39: 2019-10-24 | J39: .
H40: (date)
A42: Commissioner for taking Affidavits
A45: File # EB- | B45: =IF(B15="","",B15) -> 2018-0305 | F45: Process: | G45: =IF(G15="","",G15) -> Enbridge Gas Inc. 2019 Natural Gas Rates
A47: Party: | B47: =IF(B17="","",B17) -> Quinte Manufacturers Association
A50: Summary of Fees and Disbursements Being Claimed
A51: Legal/consultant/other fees | E51: =SUM('Fees & Disbursements:EndSheet'!F42) -> 4585
A52: Disbursements | E52: =SUM('Fees & Disbursements:EndSheet'!E74) -> 0
A53: HST | E53: =SUM('Fees & Disbursements:EndSheet'!G42)+SUM('Fees & Disbursements:EndSheet'!G74) -> 596.05
A54: Total Cost Claim | E54: =SUM(E51:E53) -> 5181.05
A58: Payment Information
A60: Make cheque payable to: | E60: GH Gunther Huettlin Manufacturing Inc.
A62: Send payment to this address: | E62: Ms. K. Egan, EVP & CFO
E63: 101 Petrie Place
E64: Belleville, Ontario K8N 5T3

Sheet Fees & Disbursements
A2: File # EB- | B2: =IF('Affidavit & Summary'!B$15="","",'Affidavit & Summary'!B$15) -> 2018-0305 | E2: Process: | F2: =IF('Affidavit & Summary'!G$15="","",'Affidavit & Summary'!G$15) -> Enbridge Gas Inc. 2019 Natural Gas Rates
A4: Party: | B4: =IF('Affidavit & Summary'!B$17="","",'Affidavit & Summary'!B$17) -> Quinte Manufacturers Association | E4: Service Provider Name: | G4: Michael McLeod
C6: SERVICE PROVIDER TYPE | D6: (check one) | E6: Year Called to Bar | G6: Completed Years Practising/Years of Relevant Experience
C7: Legal Counsel | G7: 37
C8: Articling Student/Paralegal
C9: Consultant | G9: Hourly Rate: | H9: 140
C10: Analyst
C11: For Consultant/Analyst: | D11: CV attached | F11: HST Rate Charged (enter %): | H11: 0.13
D12: CV provided within previous 24 months
A14: Statement of Fees Being Claimed
D15: Hours | E15: Hourly Rate | F15: Subtotal | G15: HST | H15: Total
A16: Pre-hearing Conference
A17: Preparation | E17: =H9 -> 140 | F17: =D17*E17 -> 0 | G17: =F17*H$11 -> 0 | H17: =F17+G17 -> 0
A18: Attendance | E18: =E17 -> 140 | F18: =D18*E18 -> 0 | G18: =F18*H$11 -> 0 | H18: =F18+G18 -> 0
A19: Technical Conference
A20: Preparation | D20: 2.75 | E20: =E17 -> 140 | F20: =D20*E20 -> 385 | G20: =F20*H$11 -> 50.05 | H20: =F20+G20 -> 435.05
A21: Attendance | D21: 7 | E21: =E17 -> 140 | F21: =D21*E21 -> 980 | G21: =F21*H$11 -> 127.4 | H21: =F21+G21 -> 1107.4
A22: Interrogatories
A23: Preparation | D23: 4 | E23: =E$17 -> 140 | F23: =D23*E23 -> 560 | G23: =F23*H$11 -> 72.8 | H23: =F23+G23 -> 632.8
A24: Responses | D24: 2.25 | E24: =E$17 -> 140 | F24: =D24*E24 -> 315 | G24: =F24*H$11 -> 40.95 | H24: =F24+G24 -> 355.95
A25: Issues Conference
A26: Preparation | E26: =E$17 -> 140 | F26: =D26*E26 -> 0 | G26: =F26*H$11 -> 0 | H26: =F26+G26 -> 0
A27: Attendance | E27: =E$17 -> 140 | F27: =D27*E27 -> 0 | G27: =F27*H$11 -> 0 | H27: =F27+G27 -> 0
A28: ADR - Settlement Conference
A29: Preparation | D29: 2 | E29: =E$17 -> 140 | F29: =D29*E29 -> 280 | G29: =F29*H$11 -> 36.4 | H29: =F29+G29 -> 316.4
C30: Attendance | D30: 8 | E30: =E$17 -> 140 | F30: =D30*E30 -> 1120 | G30: 145.6 | H30: =F30+G30 -> 1265.6
C31: Proposal Preparation | E31: =E$17 -> 140 | F31: =D31*E31 -> 0 | G31: 0 | H31: =F31+G31 -> 0
A32: Argument
A33: Preparation | D33: 6.75 | E33: =E$17 -> 140 | F33: =D33*E33 -> 945 | G33: =F33*H$11 -> 122.85 | H33: =F33+G33 -> 1067.85
A34: Oral Hearing
A35: Preparation | E35: =E$17 -> 140 | F35: =D35*E35 -> 0 | G35: =F35*H$11 -> 0 | H35: =F35+G35 -> 0
A36: Attendance | E36: =E$17 -> 140 | F36: =D36*E36 -> 0 | G36: 0 | H36: =F36+G36 -> 0
A37: Other Conferences
A38: Preparation | E38: =E$17 -> 140 | F38: =D38*E38 -> 0 | G38: =F38*H$11 -> 0 | H38: =F38+G38 -> 0
A39: Attendance | E39: =E$17 -> 140 | F39: =D39*E39 -> 0 | G39: 0 | H39: =F39+G39 -> 0
A40: Case Management | F40: =D40*E40 -> 0 | G40: 0 | H40: =F40+G40 -> 0
A42: TOTAL SERVICE PROVIDER FEES | F42: =SUM(F16:F40) -> 4585 | G42: =SUM(G16:G40) -> 596.05 | H42: =SUM(H16:H40) -> 5181.05
A51: File # EB- | B51: =IF('Affidavit & Summary'!B$15="","",'Affidavit & Summary'!B$15) -> 2018-0305 | E51: Process: | F51: =IF('Affidavit & Summary'!G$15="","",'Affidavit & Summary'!G$15) -> Enbridge Gas Inc. 2019 Natural Gas Rates
A53: Party: | B53: =IF('Affidavit & Summary'!B$17="","",'Affidavit & Summary'!B$17) -> Quinte Manufacturers Association | E53: Service Provider Name: | G53: =IF(G4="","",G4) -> Michael McLeod
A55: Statement of Disbursements Being Claimed
E56: Net Cost | G56: HST | H56: Total
A57: Scanning/Photocopy | G57: =E57*H11 -> 0 | H57: =E57+G57 -> 0
A58: Printing | G58: =E58*H11 -> 0 | H58: 0
A59: Courier | G59: =E59*H11 -> 0 | H59: 0
A60: Telephone/Fax | G60: =E60*H11 -> 0 | H60: 0
A61: Transcripts | G61: =E61*H11 -> 0 | H61: 0
A62: Travel: Air | G62: =E62*H11 -> 0 | H62: 0
A63: Travel: Car | G63: =E63*H11 -> 0 | H63: 0
A64: Travel: Rail | G64: =E64*H11 -> 0 | H64: 0
A65: Travel (Other): | G65: =E65*H11 -> 0 | H65: 0
A66: Parking | G66: =E66*H11 -> 0 | H66: =E66+G66 -> 0
A67: Taxi | G67: =E67*H11 -> 0 | H67: =E67+G67 -> 0
A68: Accommodation | G68: =E68*H11 -> 0 | H68: 0
A69: Meals | G69: =E69*H11 -> 0 | H69: 0
A70: Other: | G70: =E70*H11 -> 0 | H70: 0
A71: Other: | G71: =E71*H11 -> 0 | H71: 0
A72: Other: | G72: =E72*H11 -> 0 | H72: 0
A74: TOTAL DISBURSEMENTS: | E74: =SUM(E57:E72) -> 0 | G74: =SUM(G57:G72) -> 0 | H74: =SUM(H57:I72) -> 0
A89: FALSE | B89: FALSE | C89: TRUE | D89: FALSE | E89: =IF(A89=TRUE,TRUE,IF(B89=TRUE,TRUE,IF(C89=TRUE,TRUE,IF(D89=TRUE,TRUE,FALSE)))) -> TRUE | F89: FALSE

Sheet EndSheet (hidden)
